Cogmind - Beta 16.1 @@@ ROGUE MODE // 2026.04.04 @ 00:37:22 Player: Rocket Result: Destroyed by G-47 Trooper with Particle Gun Performance ------------- Evolutions (1) 500 Regions Visited (6) 1200 Robots Destroyed (39) 195 Value Destroyed (837) 837 Prototype IDs (1) 20 Alien Tech Used (0) 0 Bonus (-234) -234 TOTAL SCORE: 2518 Bonus ------- Follower Combat Kills 74 Friendly Fire -308 Cogmind --------- Core Integrity 0/400 Matter 261/300 Energy 18/125 System Corruption 6% Temperature Cool (35) Movement Treading (240) Ox1 Location -8/Mines Parts ------- > --- POWER (1) -------- Light Ion Engine > --- PROPULSION (2) --- Light Treads Light Treads > --- UTILITY (4) ------ Improved Heat Sink High-capacity Storage Unit Medium Armor Plating > --- WEAPON (2) ------- Beam Rifle Light Assault Rifle > --- INVENTORY (20) --- Wheel Wheel Wheel Compact Wheel Heat Sink Small Storage Unit Large Storage Unit Targeting Computer Improved Targeting Computer Launcher Guidance Computer Propulsion Shielding Utility Shielding Light EM Pulse Cannon Light Assault Rifle Peak State ------------ > --- POWER ------------ Light Nuclear Core > --- PROPULSION ------- Light Treads Light Treads > --- UTILITY ---------- Improved Heat Sink High-capacity Storage Unit Medium Armor Plating Hardened Light Armor Plating > --- WEAPON ----------- Beam Rifle Light EM Pulse Cannon > --- INVENTORY -------- Wheel Wheel Wheel Compact Wheel Heat Sink Small Storage Unit Large Storage Unit Targeting Computer Improved Targeting Computer Launcher Guidance Computer Propulsion Shielding Utility Shielding Medium Armor Plating Light Assault Rifle Light Assault Rifle [Rating: 19] Favorites ----------- Power Light Ion Engine Engine Light Ion Engine Power Core Light Nuclear Core Propulsion Light Treads Treads Light Treads Wheel Compact Wheel Utility High-capacity Storage Unit Device Seismic Detector Storage High-capacity Storage Unit Processor Targeting Computer Protection Light Armor Plating Weapon Light Assault Rifle Energy Gun EM Pulse Gun Energy Cannon Light EM Pulse Cannon Ballistic Gun Light Assault Rifle Build | -11 -10 -10 -9 -9 -9 -8 ------- Run | Yrd Mat Min Mat Min Exi Min Slots Evolved 2 | . . . 2 . . . Power . | . . . . . . . Propulsion . | . . . . . . . Utility 2 | . . . 2 . . . Weapon . | . . . . . . . Parts Attached 37 | 8 3 2 8 10 . 6 Power 8 | 1 . 1 4 . . 2 Engine 6 | 1 . 1 3 . . 1 Core 2 | . . . 1 . . 1 Reactor . | . . . . . . . Propulsion 7 | 2 . 1 . 4 . . Treads 2 | . . . . 2 . . Leg . | . . . . . . . Wheel 5 | 2 . 1 . 2 . . Hover . | . . . . . . . Flight . | . . . . . . . Utility 14 | 2 2 . 2 5 . 3 Device 3 | 1 . . 1 . . 1 Storage 3 | 1 2 . . . . . Processor 2 | . . . 1 1 . . Hackware . | . . . . . . . Protection 6 | . . . . 4 . 2 Artifact . | . . . . . . . Weapon 8 | 3 1 . 2 1 . 1 Energy Gun 2 | 1 . . . . . 1 Energy Cannon 1 | . . . 1 . . . Ballistic Gun 5 | 2 1 . 1 1 . . Ballistic Cannon . | . . . . . . . Launcher . | . . . . . . . Special Weapon . | . . . . . . . Impact Weapon . | . . . . . . . Slashing Weapon . | . . . . . . . Piercing Weapon . | . . . . . . . Special Melee Weapon . | . . . . . . . Unidentified Prototypes 1 | . . . 1 . . . Corrupted Parts 1 | . . . . . . 1 System Corruption 6 | . . . . . . 6 Parts Lost 16 | . . 1 2 6 . 7 Power 4 | . . 1 . 2 . 1 Propulsion 3 | . . . 1 2 . . Utility 5 | . . . . 1 . 4 Weapon 4 | . . . 1 1 . 2 Highest Loss Streak 4 | . . 1 1 4 . 4 To Critical Strikes 1 | . . . . 1 . . Average Backups 11 | . 4 7 10 15 18 16 Power . | . . . 1 . . . Propulsion 2 | . . 1 3 2 3 3 Utility 5 | . 1 2 2 7 10 9 Weapon 3 | . 2 3 3 4 5 3 Tool/Special . | . . . . . . . Unused Backups 9 | . 1 . . . . 8 Power . | . . . . . . . Propulsion 2 | . . . . . . 2 Utility 7 | . 1 . . . . 6 Weapon . | . . . . . . . Tool/Special . | . . . . . . . Average Slot Usage (%) 90 | . 100 100 84 83 88 93 Engine 8 | . 14 14 6 6 11 1 Core 2 | . . . 4 3 . 8 Treads 9 | . . . . 11 22 22 Wheel 13 | . 28 28 21 7 . . Device 8 | . 14 14 11 3 . 9 Storage 11 | . 14 14 11 11 11 11 Processor 4 | . . . 7 9 . . Protection 11 | . . . . 14 33 23 Energy Gun 1 | . . . . . . 15 Ballistic Gun 17 | . 28 28 20 16 11 2 Peak Build Rating 19 | 7 7 7 11 12 11 19 Average Rating 9 | 5 7 6 9 10 11 16 On Entrance 7 | . 7 7 7 10 11 11 Avg Prop Armor Cover (%) . | . . . . . . . Naked Turns . | . . . . . . . Heaviest Build 65 | 13 47 47 50 55 55 65 Greatest Support 40 | 32 32 32 26 40 40 40 Greatest Overweight (x) 4 | 1 1 1 4 4 1 1 Average Overweight (x) 1 | . . 1 1 2 1 1 Largest Inventory Capacity 20 | 8 20 20 20 20 20 20 Average Capacity 18 | 7 14 20 20 20 20 20 Most Carried 19 | 2 7 9 12 19 18 18 Average Carried 11 | . 4 7 10 15 18 15 Final Capacity 20 | 8 20 20 20 20 20 20 Final Carried 18 | 2 7 9 11 18 18 14 Class Distribution -------------------- 59% | Scavenger-Mutant 40% | Mutant Dominant Class ---------------- Mutant | -10/Materials Mutant | -10/Mines Scavenger-Mutant | -9/Materials Scavenger-Mutant | -9/Mines Scavenger-Mutant | -9/Exiles Scavenger-Mutant | -8/Mines Resources | -11 -10 -10 -9 -9 -9 -8 ----------- Run | Yrd Mat Min Mat Min Exi Min Matter Collected 1004 | 295 187 72 207 182 . 61 Remotely 195 | . . . 167 28 . . Salvage Created 1250 | 132 237 60 372 159 . 290 Parts 94 | 11 23 5 27 15 . 13 Haulers Intercepted . | . . . . . . . Recyclers Shooed 2 | . 1 . . 1 . . Parts Field Recycled . | . . . . . . . Retrieved Matter . | . . . . . . . Parts Self-Destructed . | . . . . . . . Prevented . | . . . . . . . Parts Restored . | . . . . . . . Kills | -11 -10 -10 -9 -9 -9 -8 ------- Run | Yrd Mat Min Mat Min Exi Min Combat Hostiles Destroyed 26 | . 7 1 9 5 . 4 Guns 24 | . 7 1 8 5 . 3 Cannons 1 | . . . . . . 1 AOE 1 | . . . 1 . . . Classes Destroyed 9 | 2 3 . 2 . . 2 Worker 1 | . . . . . . 1 Tunneler 7 | 4 . 1 . 1 . 1 Recycler 1 | 1 . . . . . . Watcher 1 | . 1 . . . . . Swarmer 10 | . 3 . 4 3 . . Grunt 15 | . 4 1 5 2 . 3 Brawler 1 | . . . . . . 1 Sentry 1 | . . . 1 . . . Zionite 1 | . . . 1 . . . Thug 1 | . . . 1 . . . Best Kill Streak 5 | 3 4 1 3 5 . 2 Combat Bots Only 5 | . 4 1 3 5 . 2 Max Kills in Single Turn 4 | 1 2 1 4 1 . 1 Gunslinging 1 | . 1 . . . . . Exploded 1 | . . . 1 . . . Melee . | . . . . . . . Uniques/NPCs Destroyed . | . . . . . . . Combat | -11 -10 -10 -9 -9 -9 -8 -------- Run | Yrd Mat Min Mat Min Exi Min Hostile Shots Fired 203 | . 28 7 46 43 . 79 Missed 56 | . 3 2 14 15 . 22 Hits 147 | . 25 5 32 28 . 57 Melee 4 | . . . . . . 4 Projectile 143 | . 25 5 32 28 . 53 AOE 2 | . . . . 2 . . Critical Strikes 6 | . . 1 1 1 . 3 Damage Taken 2096 | . 250 77 442 373 . 954 Core 488 | . 58 18 230 101 . 81 Absorbed by Shields . | . . . . . . . Core Remaining (%) 84 | 100 . 69 . . . . Volleys Fired 132 | 10 25 14 33 22 . 28 Largest 2 | 2 2 2 2 2 . 2 Hottest 112 | 40 40 40 40 40 . 112 Shots Fired 244 | 20 50 28 58 42 . 46 Gun 240 | 20 50 28 58 42 . 42 Cannon 4 | . . . . . . 4 Launcher . | . . . . . . . Special . | . . . . . . . Kinetic 219 | 20 50 28 58 42 . 21 Thermal 7 | . . . . . . 7 Explosive . | . . . . . . . Electromagnetic 18 | . . . . . . 18 Robot Hit Streak 14 | 5 5 3 13 14 . 11 Robot Miss Streak 6 | 3 6 2 5 3 . 2 Penetration Max . | . . . . . . . Secondary Targets 8 | . 3 . 3 2 . . Max Gunslinging Chain 1 | . 1 . 1 1 . . Shots Hit Robots 149 | 11 24 15 37 27 . 35 Core Hits 72 | 5 13 6 20 13 . 15 Critical Kills . | . . . . . . . Critical Parts Destroyed 1 | . . . 1 . . . Critical Strikes 1 | . . . 1 . . . Destroy 1 | . . . 1 . . . Melee Attacks . | . . . . . . . Impact . | . . . . . . . Slashing . | . . . . . . . Piercing . | . . . . . . . Sneak Attacks . | . . . . . . . Combat Hostiles . | . . . . . . . Follow-up Attacks . | . . . . . . . Damage Inflicted 2277 | 143 264 152 1007 269 . 442 Guns 1546 | 143 264 150 377 269 . 343 Cannons 94 | . . . . . . 94 Explosions 630 | . . . 630 . . . Melee . | . . . . . . . Ramming 7 | . . 2 . . . 5 Kinetic 1324 | 143 264 150 377 269 . 121 Thermal 688 | . . . 630 . . 58 Explosive . | . . . . . . . Electromagnetic 258 | . . . . . . 258 Impact . | . . . . . . . Slashing . | . . . . . . . Piercing . | . . . . . . . Highest Corruption 6 | . . . . . . 6 Average Corruption 6 | . . . . . . 6 Corruption Purged . | . . . . . . . Corruption Blocked . | . . . . . . . Effects 9 | . . . . . . 9 Matter Fused 3 | . . . . . . 3 Heat Flow Errors 1 | . . . . . . 1 Energy Discharges 1 | . . . . . . 1 Parts Rejected 1 | . . . . . . 1 Data Loss (minor) 1 | . . . . . . 1 Data Loss (major) 1 | . . . . . . 1 Weapon Failures 1 | . . . . . . 1 Overload Shots . | . . . . . . . Overflow Damage 106 | . . . 106 . . . Projectiles . | . . . . . . . Explosions 106 | . . . 106 . . . Melee . | . . . . . . . Knockbacks . | . . . . . . . Impact . | . . . . . . . Kinetic . | . . . . . . . Secondary . | . . . . . . . Self-Inflicted Damage 115 | . . 1 114 . . . Shots 1 | . . . 1 . . . Rammed 2 | . . 1 . . . 1 Targets Rammed 2 | . . 1 . . . 1 Kicked . | . . . . . . . Crushed . | . . . . . . . Highest Temperature 323 | . 6 27 12 9 . 323 Average Temperature 85 | . 6 12 6 4 . 119 Received Heat Transfer 867 | . 96 63 99 114 . 495 Siege Activations . | . . . . . . . Martial Activations . | . . . . . . . Shielding Activations . | . . . . . . . Robots Disrupted . | . . . . . . . Combat Hostiles . | . . . . . . . Robots Corrupted . | . . . . . . . Combat Hostiles . | . . . . . . . Parts Fried . | . . . . . . . Impact Corruptions . | . . . . . . . Robots Melted . | . . . . . . . Combat Hostiles . | . . . . . . . Parts Melted . | . . . . . . . Heat Transferred 498 | . . . 350 . . 148 Parts Sabotaged . | . . . . . . . Parts Stolen . | . . . . . . . Parts Stripped . | . . . . . . . Power Chain Reactions . | . . . . . . . Alert | -11 -10 -10 -9 -9 -9 -8 ------- Run | Yrd Mat Min Mat Min Exi Min Maximum Alert Level 1 | . . . 1 . . . Low Security (%) 99 | 100 100 100 96 100 . 100 Level 1 . | . . . 3 . . . Level 2 . | . . . . . . . Level 3 . | . . . . . . . Level 4 . | . . . . . . . Level 5 . | . . . . . . . High Security . | . . . . . . . Max Security . | . . . . . . . Peak Influence 225 | 10 112 80 225 90 . 40 Initial 87 | . . 31 1 87 . . Average 32 | . 54 17 107 18 . 6 Influence Increases 1068 | 25 192 101 455 185 . 110 Destroy 0b10 Robot/C 600 | . 140 40 240 100 . 80 Destroy 0b10 Robot/NC 50 | 25 5 5 . 5 . 10 Destroy Leader 132 | . 32 10 50 20 . 20 Allied During Kill 55 | . . 16 39 . . . Successful Hack 14 | . . . 14 . . . Disable Machine 60 | . . 30 30 . . . Destroy Structure 22 | . . . 22 . . . Lose Combat Pursuer 135 | . 15 . 60 60 . . Influence Decreases 1063 | 25 110 179 234 410 . 105 Entered New Map 192 | . . 51 3 138 . . Time Decay 701 | 25 110 118 171 212 . 65 Lost Part 130 | . . 10 20 60 . 40 Lost Ally 40 | . . . 40 . . . Squads Dispatched 7 | . 3 . 3 1 . . Investigation 2 | . 1 . 1 . . . Extermination . | . . . . . . . Reinforcement 5 | . 2 . 2 1 . . Assault . | . . . . . . . Garrison . | . . . . . . . Intercept . | . . . . . . . Searches Triggered . | . . . . . . . Construction Impeded 1 | . . . . 1 . . Haulers Reinforced . | . . . . . . . Active Scanning Responses . | . . . . . . . Cargo Convoy Interrupts . | . . . . . . . Stealth | -11 -10 -10 -9 -9 -9 -8 --------- Run | Yrd Mat Min Mat Min Exi Min Distress Signals 6 | . 2 . 2 2 . . Communications Jammed . | . . . . . . . Distress Signals . | . . . . . . . Times Spotted 57 | . 15 2 23 11 . 6 Peak Tracking Total 8 | . 6 2 8 4 . 3 Tactical Retreats 5 | . 1 . 2 2 . . Traps | -11 -10 -10 -9 -9 -9 -8 ------- Run | Yrd Mat Min Mat Min Exi Min Traps Triggered 1 | . 1 . . . . . Indirectly . | . . . . . . . Trap Hack Attempts . | . . . . . . . Triggered . | . . . . . . . Disarmed . | . . . . . . . Reprogrammed . | . . . . . . . Reused . | . . . . . . . Traps Extracted . | . . . . . . . Installed . | . . . . . . . Triggered . | . . . . . . . Machines | -11 -10 -10 -9 -9 -9 -8 ---------- Run | Yrd Mat Min Mat Min Exi Min Machines Disabled 4 | . . 2 2 . . . Max in Single Turn 2 | . . 1 2 . . . Machines Repaired . | . . . . . . . Machines Dismantled . | . . . . . . . Machines Sabotaged . | . . . . . . . Overloaded Fab Kills . | . . . . . . . Hacking | -11 -10 -10 -9 -9 -9 -8 --------- Run | Yrd Mat Min Mat Min Exi Min Machines Accessed 9 | . 2 . 5 . 1 1 Terminals 8 | . 2 . 5 . . 1 Fabricators . | . . . . . . . Repair Stations . | . . . . . . . Recycling Units . | . . . . . . . Scanalyzers . | . . . . . . . Garrison Access . | . . . . . . . Total Hacks 39 | . 5 . 9 . 23 2 Successful 28 | . 2 . 3 . 23 . Failed 11 | . 3 . 6 . . 2 Catastrophic 5 | . 1 . 4 . . . Database Lockouts . | . . . . . . . Manual 11 | . 3 . 7 . . 1 Terminals 16 | . 5 . 9 . . 2 Fabricators . | . . . . . . . Repair Stations . | . . . . . . . Recycling Units . | . . . . . . . Scanalyzers . | . . . . . . . Garrison Access . | . . . . . . . Terminal Hacks 28 | . 2 . 3 . 23 . Record 23 | . . . . . 23 . Part Schematic 2 | . . . 2 . . . Branch Access Points 1 | . 1 . . . . . Terminal Index 1 | . 1 . . . . . Zone Layout 1 | . . . 1 . . . Fabricator Hacks . | . . . . . . . Repair Station Hacks . | . . . . . . . Recycling Unit Hacks . | . . . . . . . Scanalyzer . | . . . . . . . Garrison Access Hacks . | . . . . . . . Unauthorized Hacks . | . . . . . . . Terminals . | . . . . . . . Fabricators . | . . . . . . . Repair Stations . | . . . . . . . Recycling Units . | . . . . . . . Scanalyzers . | . . . . . . . Garrison Access . | . . . . . . . Data Cores Recovered . | . . . . . . . Used . | . . . . . . . Hacking Detections 8 | . 2 . 5 . . 1 Full Trace Events 2 | . . . 2 . . . Feedback Events . | . . . . . . . Feedback Blocked . | . . . . . . . Robot Schematics Acquired . | . . . . . . . Robots Built . | . . . . . . . Authchips . | . . . . . . . Time . | . . . . . . . Total Robot Build Rating . | . . . . . . . Part Schematics Acquired 2 | . . . 2 . . . Parts Built . | . . . . . . . Authchips . | . . . . . . . Time . | . . . . . . . Total Part Build Rating . | . . . . . . . Part Studies Acquired . | . . . . . . . Parts Repaired . | . . . . . . . Time . | . . . . . . . Parts Recycled . | . . . . . . . Recycled Matter . | . . . . . . . Retrieved Matter . | . . . . . . . Retrieved Components . | . . . . . . . Parts Scanalyzed . | . . . . . . . Part Schematics Acquired . | . . . . . . . Parts Damaged . | . . . . . . . Bothacking | -11 -10 -10 -9 -9 -9 -8 ------------ Run | Yrd Mat Min Mat Min Exi Min Used RIF Installer . | . . . . . . . Robots Hacked . | . . . . . . . Non-combat . | . . . . . . . Combat . | . . . . . . . Robot Hacks Applied . | . . . . . . . Relay Couplers Released . | . . . . . . . Fabnet Peak Effective % . | . . . . . . . Robots Rewired . | . . . . . . . Allies Hacked . | . . . . . . . Hacks Repelled . | . . . . . . . Allies | -11 -10 -10 -9 -9 -9 -8 -------- Run | Yrd Mat Min Mat Min Exi Min Total Allies 5 | . . 5 . . . . Largest Group 5 | . . 5 5 . . . Highest-Rated Group 86 | . . 86 86 . . . Highest-Rated Ally 31 | . . 31 31 . . . Total Orders . | . . . . . . . Ally Attacks 32 | . . 6 26 . . . Total Damage 369 | . . 61 308 . . . Kills 4 | . . 1 3 . . . Allies Corrupted . | . . . . . . . Allies Melted . | . . . . . . . Intel | -11 -10 -10 -9 -9 -9 -8 ------- Run | Yrd Mat Min Mat Min Exi Min Active Infowar (turns) 1088 | 13 344 562 169 . . . Seismic 1088 | 13 344 562 169 . . . Robot Analysis Total . | . . . . . . . Derelict Logs Recovered 2 | . . 1 . 1 . . Drone Launches . | . . . . . . . Drone Recoveries . | . . . . . . . Exploration | -11 -10 -10 -9 -9 -9 -8 ------------- Run | Yrd Mat Min Mat Min Exi Min Turns Passed 3131 | 159 344 562 390 944 341 391 Spaces Moved 1770 | 119 244 418 236 487 143 123 Core 9 | 9 . . . . . . Treads 468 | . . . . 202 143 123 Legs . | . . . . . . . Wheels 1293 | 110 244 418 236 285 . . Hover . | . . . . . . . Flight . | . . . . . . . Fastest Speed 50 | 50 100 105 105 110 240 240 Average Speed 145 | 97 101 113 105 173 240 240 Slowest Speed 320 | 100 115 115 140 320 240 240 Overloaded Moves . | . . . . . . . Propulsion Burnouts . | . . . . . . . Robots Hopped . | . . . . . . . Potential Cave-ins . | . . . . . . . Cave-ins Triggered . | . . . . . . . Exploration Rate (%) 46 | 3 45 78 30 95 50 27 Regions Visited 6 Branch Regions 4 Pre-discovered Areas 2 | . . . . 1 1 . Known Exits Taken 1 | . 1 . . . . . Unknown Exits Taken 5 | 1 . 1 1 1 1 . Scrap Searched 2 | . . 1 . 1 . . Spaces Dug . | . . . . . . . Terrain Destroyed 23 | . . . 23 . . . Melee . | . . . . . . . Projectile . | . . . . . . . AOE 23 | . . . 23 . . . Terrain Rammed . | . . . . . . . Walls Destroyed . | . . . . . . . Machines Disabled . | . . . . . . . Actions | -11 -10 -10 -9 -9 -9 -8 --------- Run | Yrd Mat Min Mat Min Exi Min Total 2100 | 139 293 480 323 550 142 173 Wait 124 | . 16 44 41 12 . 11 Move 1764 | 118 243 417 235 486 142 123 Hop . | . . . . . . . Pick Up 22 | 2 4 2 1 12 . 1 Fast Attach 19 | 8 . . 2 6 . 3 Attach 14 | . . 1 3 5 . 5 Detach 1 | . . . 1 . . . Swap 13 | . 3 1 5 3 . 1 Drop 9 | 1 2 . 2 4 . . Fire 132 | 10 25 14 33 22 . 28 Melee . | . . . . . . . Ram 1 | . . 1 . . . . Kick . | . . . . . . . Crush 1 | . . . . . . 1 Escape Stasis . | . . . . . . . Rewire . | . . . . . . . Trap . | . . . . . . . Miscellaneous . | . . . . . . . Route ------- -11/Scrapyard -10/Materials (discovered 2 exits: *Min x2) -10/Mines -9/Materials -9/Mines (discovered 2 exits: [*Mat] / *Exi) -9/Exiles -8/Mines History --------- Turn | Location | Event 26 | -11/Scrapyard | Discovered new exit (range 15) 160 | -11/Scrapyard | Entered Materials 327 | -10/Materials | Build established: Mutant 341 | -10/Materials | Identified exit to Mines 504 | -10/Materials | Entered Mines 669 | -10/Mines | Learned Materials stockpile data 793 | -10/Mines | Assisted by bots powering up and referring to "LRC-V3" 1025 | -10/Mines | Discovered new exit (range 15) 1066 | -10/Mines | Entered Materials 1066 | -9/Materials | Accompanied by 5 allies 1066 | -9/Materials | Evolved 2 slots: Utility x2 1071 | -9/Materials | Led the pair of lost Derelicts to an unsafe place 1300 | -9/Materials | Lost 3 allies 1423 | -9/Materials | Discovered new exit (range 9) 1439 | -9/Materials | Core integrity fell below 50% 1456 | -9/Materials | Entered Mines 1472 | -9/Mines | Build established: Scavenger-Mutant 1489 | -9/Mines | Discovered new exit (range 15) 1535 | -9/Mines | Assembled infested the area 1540 | -9/Mines | Assisted by a Guerilla fighting off Assembled 1776 | -9/Mines | Core integrity fell below 20% 1794 | -9/Mines | Lost 4 parts (1p1n1u1w) 1828 | -9/Mines | Joined a pair of Derelicts in attacking an 0b10 outpost 2383 | -9/Mines | Learned location of Recycling (-9) 2390 | -9/Mines | Deemed a non-threat by the Exiles lab entrance 2390 | -9/Mines | Discovered new exit (range 5) 2400 | -9/Mines | Entered Exiles 2460 | -9/Exiles | Met 8R-AWN 2513 | -9/Exiles | Met EX-HEX 2585 | -9/Exiles | Met EX-BIN 2619 | -9/Exiles | Met EX-DEC 2636 | -9/Exiles | Learned location of Zion (-6) 2703 | -9/Exiles | Discovered new exit (range 14) 2741 | -9/Exiles | Entered Mines 2834 | -8/Mines | Lost 4 parts (1p2u1w) 3132 | -8/Mines | Destroyed by G-47 Trooper with Particle Gun Last Messages --------------- 03029_ K-01 Serf cleans the Matter Pump. 03030_ R-06 Scavenger collects Wheel. 03032_ K-01 Serf cleans the Matter Pump. 03033_ R-06 Scavenger collects Lgt. Ion Engine. 03037_ K-01 Serf collects debris. 03055_ System corrupted: Matter fused (-7). 03065_ K-01 Serf collects debris. 03091_ EM Pulse Gun destroyed. 03093_ K-01 Serf collects debris. 03110_ System corrupted: Lgt. Nuclear Core rejected. 03112_ G-50 Soldier destroyed. 03112_ K-01 Serf collects debris. 03115_ System corrupted: Lgt. EM Pulse Cannon failed to cycle. 03116_ Med. Armor Plating destroyed. 03117_ K-01 Serf collects debris. 03118_ K-01 Serf destroyed. 03123_ Acquired Lgt. Ion Engine. 03130_ Hrd. Light Armor Plating destroyed. Map ----- +----------------------------------------------------+ | | | | | | | | | | | | | | | | | | | | | | | | | | | | | | | ?????????????????????????????????????????????????? | | ##??####?????????????????????????????????????????? | | ### ##??####??????????????????????????????????? | | #?## ##?????????????????????????????????? | | #?# ##??????###???????????????????????? | | #??# ##????## ##?????????????????????? | | #??# ##??## #?????????????????????? | | ##### #??# #?????????????????????? | | """ ##?# = ##????????????????????? | | # ####### """ #??# %g #####????????????????? | | # ##?????# """ ##### @g ##???????????????? | | # ##??????# ##*%= #???????????????? | | # ##???????## ### #### ##??????????????? | | ####?????????## ##?# #??## #??????????????? | | ########??????####?## #???##r ##?????????????? | | #??????????## ##???# ##????????????? | | #?????????## ##??## #### #??? | | """ #??######## ##?## #???? | | """ #??# ### #???? | | """ #??# ###### #???? | | #??# ###### """ #???????? #??? | | #??# #????#### """ ##????????????? | | % #??# #???????## """ ##### #?????????????? | | #??# #????????# ##???# #?????????????? | | #### #????????# ##????? #?????????????? | | "" #??????? ##?????? ?????????????? | | "" ######?????? ### ##???????##?????????????? | | """ #??????????????# #???????????????????????? | | #??????????????# #???????????????????????? | | #####T##??????????????# #???????????????????????? | | ????###??????????????? ????????????????????????? | | ????????????????????? ?????????????????????????? | | ?????????????????????###?????????????????????????? | | ?????????????????????????????????????????????????? | | ?????????????????????????????????????????????????? | +----------------------------------------------------+ Best States ------------- Heat Dissipation 42 Energy Generation 14 Energy Capacity 160 Matter Stores 300 Matter Capacity 300 Sight Range 16 Terrain Scan Density 10 Armor Coverage 525 Utility Shielding 33 Evasion (%) 40 Targeting Accuracy 6 Recoil Reduction 2 Item Schematics ----------------- Huge Storage Unit | -9/Materials | Hacked Cargo Storage Unit | -9/Materials | Hacked Robot Schematics ------------------ None Fabricated ------------ Nothing Repaired ---------- Nothing Studied --------- None Alien Tech Used ----------------- None Achievements -------------- None Challenges ------------ None Game ------ Seed DirtyGaussMatterbank Manual? 0 Play Time 00:20:40 Cumulative 131.1 hours Start 2026.04.02 @ 03:14:28 End 2026.04.04 @ 00:37:22 Sessions 2 Manual Loads 0 Difficulty Rogue Special Mode None Game No. 185 Rogue 185 Adventurer 0 Explorer 0 Win Type - Total 1 Types 1/0/0/0/0/0/0/0/0/0 Lore% 37 Gallery% 48 Achievement% 37 Wizard Run 0 Options --------- Layout 1 ASCII 0 Keyboard 0 Movement Mouse Keybinds 0 Fullscreen 2 Font 24/Smallcaps Map View 50x35 Zoom Use 8% Tactical HUD 1 Map Filters NONE Filters NONE Steam 1 RUN: d8beb629-7841-437d-b550-9e2f30c2dc54